bitfinex/quotes_ETHUSD_20240703
["timestamp","ask_amount","ask_price","bid_price","bid_amount"]
[1720020091868,0.051908,3316.8,3316.7,2.3123]
[1720020092171,0.1177147,3317.0,3316.7,2.3123]
[1720020092463,0.1177147,3317.0,3316.4,4.9742]
[1720020093054,0.1177147,3317.0,3316.4,5.47162]
[1720020093428,0.1177147,3317.0,3316.4,2.2752]
[1720020093629,0.051908,3316.9,3316.4,2.2752]
[1720020094765,0.051908,3316.9,3316.5,0.06029569]
[1720020094922,0.051908,3316.9,3316.4,2.2752]
[1720020095125,0.051908,3316.9,3316.5,0.06029569]
[1720020095551,0.051908,3316.9,3316.4,2.2752]
[1720020098261,0.051908,3316.9,3316.5,0.06029589]
[1720020100188,0.1177147,3317.0,3316.5,0.06029589]
[1720020100568,0.05196649,3316.9,3316.5,0.06029589]
[1720020100876,0.1177147,3317.0,3316.8,2.699]
[1720020101074,0.1177147,3317.0,3316.9,0.06028851]
[1720020101301,0.1177147,3317.0,3316.9,2.66341736]
[1720020101609,0.16968119,3317.0,3316.9,2.66341736]
[1720020103198,0.1177147,3317.0,3316.9,2.66341736]
[1720020104086,0.1177147,3317.0,3316.9,0.27592885]
[1720020104287,0.1177147,3317.0,3316.8,2.699]
[1720020106503,0.1177147,3317.0,3316.8,2.75928592]
[1720020107335,0.1177147,3317.0,3316.9,2.407]
[1720020108820,0.1177147,3317.0,3316.9,2.46727722]
[1720020109227,0.1177147,3317.0,3316.9,2.407]
[1720020109419,0.1177147,3317.0,3316.9,2.9659]
[1720020110042,0.1177147,3317.0,3316.9,0.5589]
[1720020110233,0.1177147,3317.0,3316.5,11.31832]
[1720020110539,0.1177147,3317.0,3316.6,0.55]
[1720020111607,0.1177147,3317.0,3316.5,2.4221]
[1720020111807,0.1177147,3317.0,3316.6,0.32232872]
[1720020113414,0.1177147,3317.0,3316.7,2.699]
[1720020114425,0.1177147,3317.0,3316.8,0.06028858]
[1720020115550,0.1177147,3317.0,3316.8,3.07522858]
[1720020115848,0.1177147,3317.0,3316.8,3.01494]
[1720020116018,0.1177147,3317.0,3316.9,0.94987697]
[1720020118313,0.1177147,3317.0,3316.9,3.96473697]
[1720020118515,0.1177147,3317.0,3316.9,12.42109697]
[1720020118739,0.1177147,3317.0,3316.9,12.97109697]
[1720020119538,7.32,3318.0,3317.3,6.19647]
[1720020119859,0.05254714,3317.9,3317.7,2.699]
[1720020120170,0.05254714,3317.9,3317.8,0.0602689]
[1720020120343,7.32,3318.5,3317.8,0.0602689]
[1720020120726,0.57468172,3318.4,3317.8,0.0602689]
[1720020120963,0.52212816,3318.3,3317.8,0.82148589]
[1720020121166,0.05254714,3318.4,3317.8,0.82148589]
[1720020121334,0.52212243,3318.3,3317.8,0.82148589]
[1720020121553,0.05254714,3318.3,3317.8,0.82148589]
[1720020121727,0.05254714,3318.3,3317.9,0.35204859]
[1720020121928,7.32,3318.5,3317.9,0.35204859]
[1720020122158,0.05254714,3318.2,3317.9,0.35204859]
[1720020122359,7.32,3318.5,3318.0,0.06026926]
[1720020122659,0.52212252,3318.4,3318.0,0.06026926]
[1720020122862,0.05254714,3318.4,3318.0,0.06026926]
[1720020123079,0.05254714,3318.4,3318.0,2.75926926]
[1720020123281,2.3339,3318.7,3318.1,0.27592693]
[1720020123434,3.0,3318.9,3318.1,0.27592693]
[1720020123435,0.05254714,3318.3,3318.2,0.06026552]
[1720020123764,3.0,3318.9,3318.2,0.06026552]
[1720020123925,0.05254714,3318.3,3318.2,0.06026552]
[1720020124129,3.0,3318.9,3318.2,0.06026552]
[1720020124355,0.05254714,3318.3,3318.2,0.06026552]
[1720020124539,3.0,3318.9,3318.2,0.06026552]
[1720020125060,0.05254714,3318.8,3318.2,0.06026552]
[1720020125364,0.05254714,3318.8,3317.6,8.63755]
[1720020125365,2.82650495,3318.7,3317.6,5.6234]
[1720020125590,0.06032955,3318.6,3317.6,5.6234]
[1720020125928,0.05306488,3318.5,3317.6,5.6234]
[1720020126131,0.05306488,3318.5,3317.6,8.63762]
[1720020126386,0.05306488,3318.5,3317.7,0.863762]
[1720020126546,3.0,3318.9,3317.8,2.699]
[1720020126727,0.05301897,3318.4,3317.9,0.06026561]
[1720020126927,3.0,3318.9,3317.9,0.72397437]
[1720020127131,0.05301897,3318.3,3318.2,5.1232]
[1720020127378,2.4548,3319.1,3318.2,5.18343029]
[1720020127554,3.0,3319.0,3318.3,0.06026068]
[1720020127741,2.4548,3319.1,3318.3,0.06026068]
[1720020128088,2.4851,3319.8,3318.6,2.699]
[1720020128230,0.58233528,3319.7,3318.7,0.06025656]
[1720020128434,0.5750247,3319.6,3318.7,0.06025656]
[1720020128631,0.06032955,3319.5,3318.7,0.06025656]
[1720020128870,2.4851,3319.8,3318.8,0.06025657]
[1720020129043,0.58232232,3319.7,3318.7,0.27592566]
[1720020129242,0.06032955,3319.7,3318.7,0.27592566]
[1720020129484,0.06032955,3319.7,3318.7,2.56012566]
[1720020129652,3.06032955,3319.7,3318.7,2.56012566]
[1720020129850,0.05301897,3319.6,3318.7,2.56012566]
[1720020130344,0.05301897,3319.6,3318.8,0.55]
[1720020130551,2.4583,3320.0,3318.8,0.55]
[1720020130552,0.06032955,3319.9,3318.8,0.55]
[1720020130759,0.05301897,3319.5,3318.7,2.56012566]
[1720020131060,0.05367843,3319.4,3318.7,2.56012566]
[1720020131239,0.06032955,3319.7,3318.7,2.56012566]
[1720020131434,0.05367843,3319.6,3318.7,2.2842]
[1720020131751,0.25186296,3319.8,3318.7,2.2842]
[1720020131929,0.05367843,3319.5,3318.7,2.2842]
[1720020132133,0.06032955,3319.7,3318.7,2.51262]
[1720020132332,0.06032955,3319.7,3318.4,2.699]
[1720020132333,2.51197843,3319.4,3318.4,2.699]
[1720020132556,2.4583,3319.4,3318.4,2.699]
[1720020132893,0.05367843,3319.3,3318.4,2.699]
[1720020133182,0.11400798,3319.3,3318.4,2.699]
[1720020133339,0.2572308,3319.2,3318.3,0.81972207]
[1720020133542,0.2572308,3319.2,3318.1,3.0]
[1720020133763,0.2572308,3319.2,3318.0,8.3253]
[1720020134072,0.05367843,3319.1,3318.1,0.55]
[1720020134284,0.11400798,3319.1,3318.1,1.80529588]
[1720020134453,0.31756035,3319.2,3318.1,1.80529588]
[1720020134637,0.05367843,3319.1,3318.1,1.80529588]
[1720020134835,0.31756035,3319.2,3318.1,1.80529588]
[1720020135160,0.05367843,3319.1,3318.2,1.01305959]
[1720020135467,0.31756035,3319.2,3318.2,1.01305959]
[1720020135672,0.05367843,3319.1,3318.2,1.01305959]
[1720020136147,0.05367843,3319.1,3318.0,8.3253]
[1720020136148,0.06032955,3319.0,3318.0,2.699]
[1720020136494,0.05367843,3318.9,3318.0,2.699]
[1720020137074,0.05367843,3318.9,3317.8,5.5455]
[1720020137247,0.05367843,3318.9,3317.4,3.182]
[1720020137248,2.49172955,3318.8,3317.4,3.182]
[1720020137450,5.49172955,3318.8,3317.4,3.182]
[1720020137775,0.05367843,3318.7,3317.8,2.699]
[1720020137932,3.05367843,3318.7,3317.9,2.4838]
[1720020138136,0.05367843,3318.7,3318.6,5.1828]
[1720020138566,10.32,3319.6,3318.6,5.1828]
[1720020138769,3.0,3319.6,3318.6,5.1828]
[1720020138947,0.11400798,3319.5,3318.6,5.1828]
[1720020139144,0.36507923,3319.5,3318.6,5.1828]
[1720020140776,0.36507923,3319.5,3318.7,0.06025285]
[1720020142580,0.05367843,3319.5,3318.6,8.3648]
[1720020142796,0.05367843,3319.5,3318.7,3.732]
[1720020142969,3.0,3319.7,3318.8,0.06024635]
[1720020143181,0.05299755,3319.4,3318.8,0.06024635]
[1720020143385,3.0,3319.7,3318.9,0.68054364]
[1720020143585,0.05299755,3319.3,3318.9,0.68054364]
[1720020143792,0.06032955,3319.8,3318.6,2.4838]
[1720020144297,0.05299755,3319.7,3318.7,3.182]
[1720020144497,0.05299755,3319.7,3318.6,2.4838]
[1720020144498,0.05299755,3319.7,3318.8,0.55]
[1720020144802,0.05299755,3319.7,3318.7,0.55]
[1720020144982,3.06032955,3319.9,3318.7,4.55161]
[1720020145188,0.05299755,3319.6,3318.7,4.55161]
[1720020145506,0.05299755,3319.5,3318.7,4.55161]
[1720020146009,3.06032955,3319.9,3318.7,1.36961]
[1720020146232,0.05299755,3319.4,3318.7,1.36961]
[1720020146362,1.03803296,3319.8,3318.7,1.36961]
[1720020146560,0.05299755,3319.3,3318.7,1.36961]
[1720020146769,1.03803296,3319.8,3318.8,0.703541]
[1720020147013,0.05299755,3319.2,3318.7,1.36961]
[1720020147169,1.03803296,3319.8,3318.7,0.55]
[1720020147498,0.06032955,3319.7,3318.6,2.4838]
[1720020147703,0.1133271,3319.7,3318.6,2.4838]
[1720020147914,0.52197165,3319.6,3318.6,2.4838]
[1720020148131,0.1133271,3319.7,3318.7,0.83648]
[1720020148284,0.52197004,3319.6,3318.7,0.83648]
[1720020148481,0.05299755,3319.5,3318.7,0.83648]
[1720020148991,3.06032955,3319.9,3318.7,0.83648]
[1720020149315,1.56000681,3319.8,3318.7,0.83648]
[1720020149618,0.52197385,3319.7,3318.7,0.83648]
[1720020149819,0.52197385,3319.6,3318.7,0.83648]
[1720020150120,0.5749714,3319.5,3318.7,0.83648]
[1720020150284,0.52197385,3319.4,3318.7,0.83648]
[1720020150621,3.06032955,3319.9,3318.8,0.332028]
[1720020150833,0.05299755,3319.3,3318.8,0.332028]
[1720020151030,3.06032955,3319.9,3318.8,0.332028]
[1720020151314,0.52197633,3319.8,3318.8,0.332028]
[1720020151484,0.52197633,3319.7,3318.8,0.332028]
[1720020151889,0.57496696,3319.6,3318.8,0.332028]
[1720020152189,0.52196941,3319.5,3318.9,0.06025035]
[1720020152394,0.05299755,3319.6,3319.0,0.90742784]
[1720020152604,7.32,3320.0,3319.0,0.90742784]
[1720020152807,0.52191219,3319.9,3319.0,0.90742784]
[1720020153020,0.52191219,3319.8,3319.1,0.98014378]
[1720020153607,0.05299755,3319.7,3319.1,0.98014378]
[1720020153924,0.52191219,3320.0,3319.1,0.98014378]
[1720020154088,0.06032955,3320.1,3319.1,0.98014378]
[1720020154089,0.05299755,3319.6,3319.1,0.98014378]
[1720020154290,3.06032955,3320.1,3319.1,0.98014378]
[1720020154498,3.57493044,3320.0,3318.9,5.881]
[1720020154701,0.52193289,3319.9,3318.9,5.881]
[1720020155037,0.1133271,3320.0,3318.9,5.881]
[1720020155333,0.57492621,3319.9,3319.0,0.9226158]
[1720020155492,0.52192866,3319.8,3319.0,0.9226158]
[1720020156228,0.05313115,3319.7,3319.0,0.9226158]
[1720020156438,0.05313115,3319.7,3319.1,0.68036158]
[1720020156605,0.06032955,3320.0,3319.1,0.68036158]
[1720020156945,0.52191274,3319.9,3319.1,0.68036158]
[1720020157219,0.52191274,3319.8,3319.1,0.68036158]
[1720020157420,0.52191274,3319.8,3319.2,6.23464412]
[1720020157620,0.52191274,3319.8,3319.3,0.7517402]
[1720020157794,0.05328143,3319.7,3319.3,3.4507402]
[1720020158120,3.0,3320.2,3319.3,3.4507402]
[1720020158299,0.05328143,3319.6,3319.3,3.4507402]
[1720020158497,3.0,3320.2,3319.4,0.96251402]
[1720020158730,3.0,3320.2,3319.5,0.06023889]
[1720020158731,0.52187213,3320.1,3319.5,0.06023889]
[1720020158898,0.52187085,3320.0,3319.5,0.06023889]
[1720020159090,0.05328143,3320.1,3319.5,0.06023889]
[1720020159426,0.52187577,3320.0,3319.5,0.06023889]
[1720020159933,0.05328143,3319.9,3319.5,0.06023889]
[1720020160147,0.05328143,3319.9,3319.2,2.4424]
[1720020160299,0.05328143,3319.9,3318.9,3.182]
[1720020160635,0.06032955,3320.1,3318.8,2.3769]
[1720020160636,2.93941749,3319.8,3318.8,2.3769]
[1720020160929,0.58225709,3319.7,3318.8,2.3769]
[1720020161085,0.52192754,3319.6,3318.8,2.3769]
[1720020161283,0.06032955,3319.7,3318.8,2.3769]
[1720020161595,0.57535636,3319.6,3318.8,3.234121]
[1720020161815,0.5219595,3319.5,3318.8,3.234121]
[1720020162134,0.06032955,3319.7,3318.8,3.234121]
[1720020162329,0.05338995,3319.4,3318.8,3.234121]
[1720020162488,0.06032955,3319.7,3318.8,3.234121]
[1720020162821,0.57534202,3319.6,3318.8,3.234121]
[1720020163009,0.05338995,3319.6,3318.9,0.3234121]
[1720020163324,0.05338995,3319.5,3318.9,0.3234121]
[1720020163685,2.3641,3319.8,3318.9,0.3234121]
[1720020164001,0.57533177,3319.7,3319.0,0.27003121]
[1720020164214,0.52194182,3319.6,3318.8,2.3769]
[1720020164583,0.06032955,3319.7,3318.8,2.3769]
[1720020164790,0.05338995,3319.5,3318.8,2.3769]
[1720020165026,0.52195134,3319.4,3318.8,2.3769]
[1720020165333,0.05338995,3319.4,3318.5,0.301343]
[1720020165484,0.52199018,3319.3,3318.5,2.4976]
[1720020165689,0.5220081,3319.2,3318.5,2.4976]
[1720020165919,3.06032955,3319.7,3318.2,5.6023]
[1720020165920,0.05338995,3319.1,3318.2,5.6023]
[1720020166126,2.3097,3319.0,3317.8,2.4203]
[1720020166427,2.3097,3319.0,3317.9,3.24226612]
[1720020166428,0.52206645,3318.9,3317.9,3.24226612]
[1720020166598,2.36232955,3319.4,3317.9,9.47714612]
[1720020166797,0.05313532,3318.8,3318.0,1.49114061]
[1720020166998,3.0,3319.3,3318.2,5.4677]
[1720020167334,0.52202631,3319.2,3318.3,0.06025701]
[1720020167629,0.52202631,3319.1,3318.4,4.2847957]
[1720020167787,0.05313532,3319.2,3318.5,0.06025432]
[1720020167983,0.52200981,3319.1,3318.5,0.06025432]
[1720020168204,0.05313532,3319.1,3318.5,0.06025432]
[1720020168432,0.05313532,3319.1,3318.6,0.434505]
[1720020168584,0.52201239,3319.0,3318.7,0.06025366]
[1720020168787,0.05313532,3319.0,3318.7,0.06025366]
[1720020169009,0.05313532,3319.0,3318.8,0.0602537]
[1720020169209,3.0,3319.4,3318.8,0.0602537]
[1720020169411,0.05313532,3318.9,3318.8,0.0602537]
[1720020169636,3.0,3319.4,3318.8,0.0602537]
[1720020169804,0.05313532,3318.9,3318.8,0.0602537]
[1720020170008,3.0,3319.4,3318.8,0.0602538]
[1720020170228,0.05313532,3318.9,3318.8,0.0602538]
[1720020170512,0.05295579,3318.9,3318.8,0.0602538]
[1720020170835,0.05295579,3318.9,3318.6,0.434505]
[1720020171145,0.05295579,3318.8,3318.0,1.49114061]
[1720020171339,0.05295579,3318.8,3317.8,4.9727]
[1720020171636,3.06032955,3319.2,3317.8,4.9727]
[1720020171837,0.05295579,3318.7,3317.8,4.9727]
[1720020172049,0.06032955,3319.0,3317.9,1.416878]
[1720020172219,0.52205775,3318.9,3317.9,1.416878]
[1720020172392,0.52205775,3318.8,3317.9,1.416878]
[1720020172597,0.05295579,3318.9,3317.9,1.416878]
[1720020172907,0.57501932,3318.8,3317.9,1.416878]
[1720020173228,0.05295579,3318.8,3318.0,4.1223608]
[1720020173427,0.05295579,3318.8,3318.1,2.302]
[1720020173613,2.4094,3319.3,3318.2,0.06025938]
[1720020173927,0.52203616,3319.2,3318.2,0.06025938]
[1720020174127,0.52203616,3319.1,3318.4,3.182]
[1720020174327,0.05295579,3319.2,3318.5,0.06025489]
[1720020174549,0.05291404,3319.0,3318.5,0.06025489]
[1720020174710,3.0,3319.4,3318.5,0.06025489]
[1720020174897,0.05291404,3318.9,3318.6,0.32422549]
[1720020175232,3.0,3319.4,3318.7,0.0602539]
[1720020175697,0.57491574,3319.3,3318.7,0.0602539]
[1720020175892,0.5220017,3319.2,3318.8,2.4894]
[1720020176097,0.05299336,3319.1,3318.9,0.3152164]
[1720020176404,2.3815,3320.0,3318.9,0.3152164]
[1720020177927,0.05302676,3319.4,3318.9,0.3152164]
[1720020180546,3.06032955,3319.8,3318.9,0.3152164]
[1720020180697,0.05302676,3319.3,3318.9,0.06025101]
[1720020180900,0.5822974,3319.7,3318.5,2.3748]
[1720020181154,0.57503595,3319.6,3318.5,2.3748]
[1720020181301,0.58233874,3319.5,3318.5,2.61228]
[1720020181508,0.58233874,3319.5,3318.0,3.01381]
[1720020181509,2.3282,3319.3,3318.1,2.3748]
[1720020181826,0.58233874,3319.2,3318.1,2.3748]
[1720020182152,0.57516538,3319.1,3318.1,2.3748]
[1720020182302,0.52200919,3319.0,3318.1,2.3748]
[1720020182641,0.52200919,3319.0,3318.2,0.55568]
[1720020182800,0.52200919,3319.1,3318.1,2.3748]
[1720020183005,0.06032955,3319.0,3318.1,2.3748]
[1720020183212,0.52200919,3318.9,3318.1,2.3748]
[1720020183412,0.06032955,3319.2,3318.1,2.3748]
[1720020183614,0.52204146,3319.1,3318.1,2.3748]
[1720020183847,2.38852955,3319.3,3318.2,0.91732528]
[1720020184026,0.05315619,3319.0,3318.3,0.06026028]
[1720020184342,2.31402955,3319.7,3318.3,0.06026028]
[1720020184531,1.84594541,3319.6,3318.3,0.06026028]
[1720020184733,0.52200132,3319.5,3318.3,0.06026028]
[1720020184909,0.52200132,3319.5,3318.4,7.17668953]
[1720020185109,0.52200132,3319.5,3318.5,0.06025357]
[1720020185338,0.05315619,3319.4,3318.5,0.06025357]
[1720020185527,0.52200132,3319.3,3318.5,0.06025357]
[1720020185726,0.05315619,3319.4,3318.5,0.06025357]
[1720020186003,2.2537,3319.7,3318.6,0.72369431]
[1720020186004,0.52198767,3319.3,3318.6,0.72369431]
[1720020186208,0.05315619,3319.3,3318.6,0.72369431]
[1720020186647,2.31402955,3319.7,3318.7,0.06025359]
[1720020186845,0.05315619,3319.2,3318.8,2.4188]
[1720020187139,0.05315619,3319.1,3318.9,0.06024987]
[1720020187506,3.0,3319.8,3318.9,0.06024987]
[1720020187702,0.57507613,3319.7,3319.0,0.86740999]
[1720020187919,0.52191994,3319.6,3319.0,0.86740999]
[1720020188638,0.05331898,3319.5,3319.0,0.86740999]
[1720020188843,3.0,3319.8,3319.0,0.86740999]
[1720020189009,0.52192897,3319.7,3319.0,0.86740999]
[1720020189210,0.52192897,3319.6,3319.0,0.86740999]
[1720020189411,0.05331898,3319.7,3319.0,0.86740999]
[1720020189612,0.52192685,3319.6,3319.0,0.86740999]
[1720020189829,0.05331898,3319.6,3319.0,0.86740999]
[1720020190016,0.05331898,3319.6,3319.1,0.06024604]
[1720020190222,0.05331898,3319.5,3319.2,6.1608]
[1720020190433,0.17804425,3320.4,3319.3,0.68234429]
[1720020190620,0.52186995,3320.3,3319.3,0.68234429]
[1720020190833,0.52186995,3320.2,3319.3,0.68234429]
[1720020191036,0.52186995,3320.1,3319.4,0.98558943]
[1720020191259,0.05333568,3320.0,3319.5,0.06023947]
[1720020191761,0.05333568,3319.9,3319.5,0.06023947]
[1720020191922,0.05333568,3319.9,3319.6,0.40583589]
[1720020192127,0.1177147,3320.4,3319.7,0.06023504]
[1720020192328,0.1177147,3320.4,3319.8,0.060235]
[1720020192553,0.05333568,3320.3,3319.8,0.060235]
[1720020192864,0.05333568,3320.3,3319.9,2.3707]
[1720020193044,0.05333568,3320.3,3319.9,2.6137935]
[1720020193546,0.05333568,3320.3,3320.0,0.060235]
[1720020194260,0.05333568,3320.3,3320.0,3.182]
[1720020194464,0.05333568,3320.3,3320.1,6.74393]
[1720020195433,0.05333568,3320.3,3320.1,3.732]
[1720020195617,0.05333568,3320.3,3320.1,0.55]
[1720020195827,0.05333568,3320.3,3319.9,2.3707]
[1720020196467,0.05333568,3320.3,3319.6,0.40583589]
[1720020198028,0.05333568,3320.3,3319.7,0.06023603]
[1720020198228,0.05333568,3320.3,3319.8,0.06023401]
[1720020198762,0.05333568,3320.3,3319.9,2.2923]
[1720020198963,0.05333568,3320.3,3320.0,0.06023178]
[1720020199167,0.05333568,3320.3,3319.9,8.48642]
[1720020199466,0.05333568,3320.3,3320.0,6.32124569]
[1720020201276,0.05333568,3320.3,3320.0,9.33323569]
[1720020201480,0.05333568,3320.3,3320.2,11.47452]
[1720020201771,0.05333568,3320.3,3320.2,12.02452]
[1720020201993,0.1177147,3320.4,3320.3,9.20554]
[1720020202283,0.1177147,3320.4,3320.3,12.75554]
[1720020203735,0.1177147,3320.4,3320.3,9.74377]
[1720020203982,0.1177147,3320.4,3320.3,11.66418836]
[1720020204581,0.1177147,3320.4,3320.3,8.65241836]
[1720020204782,0.1177147,3320.4,3320.3,5.65241836]
[1720020205154,0.1177147,3320.4,3320.3,1.92041836]
[1720020206841,0.1177147,3320.4,3320.2,2.2688]
[1720020207066,0.1177147,3320.4,3320.1,3.182]
[1720020207442,0.1177147,3320.4,3319.8,11.10347]
[1720020207642,0.1177147,3320.4,3320.0,3.182]
[1720020208975,0.1177147,3320.4,3319.7,3.182]
[1720020209290,0.1177147,3320.4,3319.8,0.85123]
[1720020209454,0.1177147,3320.4,3319.9,0.06022993]
[1720020209655,0.1177147,3320.4,3320.1,3.182]
[1720020209855,0.1177147,3320.4,3320.2,0.06022345]
[1720020210069,0.1177147,3320.4,3320.3,0.38444573]
[1720020212693,0.1177147,3320.4,3320.3,9.76699235]
[1720020212846,0.1177147,3320.4,3320.3,15.25166235]
[1720020213549,0.1177147,3320.4,3320.3,12.23989235]
[1720020215848,0.1177147,3320.4,3320.3,15.25166235]
[1720020216387,0.1177147,3320.4,3320.3,12.23989235]
[1720020216603,0.1177147,3320.4,3320.3,15.25166235]
[1720020217584,0.1177147,3320.4,3320.3,9.54089235]
[1720020218566,0.1177147,3320.4,3320.3,7.06799235]
[1720020218773,0.1177147,3320.4,3320.3,4.05622235]
[1720020219295,0.1177147,3320.4,3320.0,3.182]
[1720020220271,0.1177147,3320.4,3319.8,0.30123]
[1720020220474,0.1177147,3320.4,3319.8,3.31345]
[1720020220652,0.05487923,3320.3,3319.8,3.31345]
[1720020220972,0.1177147,3320.4,3319.8,3.31345]
[1720020221183,0.1177147,3320.4,3319.9,3.89177478]
[1720020221378,0.1177147,3320.4,3320.1,3.01194]
[1720020221673,0.1177147,3320.4,3320.2,0.06022433]
[1720020222580,0.1177147,3320.4,3320.2,3.07207433]
[1720020222748,0.1177147,3320.4,3320.3,9.04997]
[1720020222960,0.1177147,3320.4,3320.3,10.23088943]
[1720020223663,0.1177147,3320.4,3320.3,16.24265943]
[1720020231415,7.32,3321.5,3320.8,3.01128]
[1720020231637,7.32,3321.5,3320.7,3.182]
[1720020231638,2.3285,3322.0,3320.7,6.19341]
[1720020231774,0.05520022,3321.4,3320.8,0.619341]
[1720020231977,2.2799,3321.3,3320.3,7.19267943]
[1720020232179,0.05520022,3321.2,3320.3,7.19267943]
[1720020232495,0.11552977,3321.2,3320.3,1.18091943]
[1720020232703,0.11552977,3321.2,3320.1,8.89295]
[1720020233010,2.2799,3321.3,3320.2,3.01184]
[1720020233011,0.05508767,3321.1,3320.2,3.01184]
[1720020233515,2.2799,3321.3,3320.2,3.01184]
[1720020233719,0.06032955,3321.2,3320.3,3.01175]
[1720020233881,0.0550835,3321.2,3320.3,3.01175]
[1720020234218,0.0550835,3321.2,3320.4,0.301175]
[1720020234578,0.0550835,3321.2,3320.7,3.01139]
[1720020234805,0.06032955,3321.5,3320.5,8.89251]
[1720020235129,0.06032955,3321.5,3320.6,3.9308585]
[1720020235309,0.05491674,3321.4,3320.7,3.0114]
[1720020235616,2.4081,3321.6,3320.8,0.06021674]
[1720020235913,0.05502932,3321.3,3320.6,3.9308585]
[1720020236122,2.4081,3321.6,3320.7,4.3539136]
[1720020236413,2.4081,3321.6,3320.8,0.0602167]
[1720020236613,2.4081,3321.6,3320.7,4.29369685]
[1720020236614,0.05502516,3321.5,3320.7,4.29369685]
[1720020237590,2.3656,3321.3,3320.4,0.301175]
[1720020237940,2.3656,3321.3,3320.0,6.012]
[1720020237941,0.06032955,3321.2,3320.2,2.699]
[1720020238104,0.06032955,3321.2,3320.3,3.0]
[1720020238510,0.06032955,3321.2,3320.3,3.06022671]
[1720020238818,0.06032955,3321.2,3320.4,0.87710867]
[1720020239190,2.408,3321.1,3320.0,3.012]
[1720020239837,0.05496677,3321.0,3320.0,3.012]
[1720020240447,0.05496677,3321.0,3320.1,0.06022692]
[1720020241734,0.05496677,3321.0,3320.2,3.01184]
[1720020241936,0.05496677,3321.0,3320.3,1.190473]
[1720020242316,2.408,3321.1,3320.3,1.190473]
[1720020243308,0.0548542,3321.0,3320.3,1.190473]
[1720020243707,0.0548542,3320.9,3320.3,1.190473]
[1720020243903,0.0548542,3320.9,3320.4,0.4202313]
[1720020244131,2.408,3321.1,3320.3,1.190473]
[1720020244522,0.05488338,3321.0,3320.3,1.190473]
[1720020244729,2.408,3321.1,3320.3,1.190473]
[1720020246252,2.408,3321.1,3320.4,0.06022301]
[1720020246450,0.06032955,3321.9,3320.5,5.77080051]
[1720020246768,2.317,3321.8,3320.6,0.89528005]
[1720020246918,2.4320295,3321.8,3320.7,3.182]
[1720020247119,0.06032955,3321.7,3320.8,0.55]
[1720020247332,0.06032955,3321.7,3320.7,3.56139]
[1720020247649,2.43722503,3321.6,3320.7,0.66057201]
[1720020247854,0.06032955,3321.5,3320.3,5.71075]
[1720020248558,2.3488,3321.4,3320.3,2.699]
[1720020249609,2.3488,3321.4,3320.2,6.19385]
[1720020249814,2.3488,3321.4,3320.1,3.182]
[1720020250014,2.3488,3321.4,3320.2,4.621297]
[1720020250323,0.05482503,3321.3,3320.2,4.621297]
[1720020250517,2.2854,3321.2,3320.2,4.621297]
[1720020251261,2.2854,3321.2,3320.2,0.889297]
[1720020251440,0.05482503,3321.1,3320.2,0.889297]
[1720020251614,0.05482503,3321.1,3320.3,0.7083247]
[1720020251811,2.2854,3321.2,3320.3,0.7083247]
[1720020252014,0.05482503,3321.1,3320.3,0.7083247]
[1720020252265,2.2854,3321.2,3320.3,0.7083247]
[1720020252569,0.06032955,3321.1,3320.3,0.7083247]
[1720020252718,0.11515458,3321.1,3320.4,0.15976217]
[1720020252927,0.06032955,3321.1,3320.3,0.7083247]
[1720020256221,2.2854,3321.2,3320.3,0.7083247]
[1720020256623,0.05482503,3321.1,3320.4,0.06022413]
[1720020256958,2.2854,3321.2,3320.4,0.06022413]
[1720020257339,0.05485839,3321.1,3320.4,0.06022413]
[1720020257641,2.2854,3321.2,3320.4,0.06022413]
[1720020258043,0.05485839,3321.1,3320.4,0.06022413]
[1720020258430,2.2854,3321.2,3320.4,0.06022413]
[1720020258735,0.05479586,3321.1,3320.4,0.06022413]
[1720020259137,2.2854,3321.2,3320.4,0.06022413]
[1720020259564,0.05479586,3321.1,3320.4,0.06022413]
[1720020259925,2.2854,3321.2,3320.4,0.06022413]
[1720020260267,0.0548042,3321.1,3320.4,0.06022413]
[1720020260638,2.2854,3321.2,3320.4,0.06022413]
[1720020260831,0.0548042,3321.1,3320.4,0.06022413]
[1720020261040,2.2854,3321.2,3320.4,0.06022413]
[1720020261260,0.0548042,3321.1,3320.4,0.06022413]
[1720020261775,2.2854,3321.2,3320.4,0.06022413]
[1720020261940,0.0548042,3321.1,3320.4,0.06022413]
[1720020262370,2.2854,3321.2,3320.4,0.06022413]
[1720020262739,0.0548042,3321.1,3320.4,0.06022413]
[1720020263060,2.2854,3321.2,3320.4,0.06022413]
[1720020263460,0.0548042,3321.1,3320.4,0.06022413]
[1720020263852,2.2854,3321.2,3320.4,0.06022413]
[1720020264479,0.05485839,3321.1,3320.4,0.06022413]
[1720020264886,2.2854,3321.2,3320.4,0.06022413]
[1720020265243,0.05485839,3321.1,3320.4,0.06022413]
[1720020265442,0.05485839,3321.1,3320.5,0.37803088]
[1720020265689,2.2854,3321.2,3320.6,0.06022278]
[1720020266037,0.05485839,3321.1,3320.6,0.06022278]
[1720020266243,2.2854,3321.2,3320.5,0.37803088]
[1720020266442,2.2854,3321.2,3320.3,3.7200847]
[1720020271310,2.2854,3321.2,3320.4,11.17564277]
[1720020271449,2.2723,3321.5,3320.4,8.10379]
[1720020271646,0.1152463,3321.4,3320.4,8.10379]
[1720020271846,0.1152463,3321.4,3320.5,0.88121147]
[1720020274251,0.1152463,3321.4,3320.5,3.89279147]
[1720020274649,0.05491675,3321.4,3320.8,2.699]
[1720020274862,1.814,3323.1,3320.8,2.699]
[1720020274863,2.4201,3322.1,3321.3,5.70986]
[1720020275068,2.4201,3322.1,3321.4,3.07092461]
[1720020275357,0.06032955,3322.0,3320.6,3.41213088]
[1720020275567,0.06032955,3322.0,3320.9,2.699]
[1720020275896,0.06032955,3322.0,3321.0,0.06021602]
[1720020276100,2.4201,3322.1,3321.1,0.5770426]
[1720020276270,2.4201,3322.1,3320.9,2.699]
[1720020276271,2.3451,3321.8,3320.9,0.06022002]
[1720020276471,2.3451,3321.8,3320.9,3.07144002]
[1720020276673,3.06032955,3322.5,3320.7,3.0]
[1720020276674,2.40542955,3321.7,3320.7,3.0]
[1720020276904,2.46053806,3321.7,3320.7,1.2856314]
[1720020277115,2.40542955,3321.7,3320.8,0.06022025]
[1720020277395,0.05540028,3321.6,3320.8,0.06022025]
[1720020277555,2.40542955,3321.7,3320.8,0.06022025]
[1720020278497,0.06032955,3321.6,3320.8,0.06022025]